Cogmind - Beta 14 @@@ ROGUE MODE // 2024.08.09 @ 10:51:17 Player: Olafz Result: Destroyed by G-47 Trooper with Particle Gun Performance ------------- Evolutions (3) 1500 Regions Visited (5) 1000 Robots Destroyed (0) 0 Value Destroyed (0) 0 Prototype IDs (0) 0 Alien Tech Used (0) 0 Bonus (834) 834 TOTAL SCORE: 3334 Bonus ------- Pacifist 834 Cogmind --------- Core Integrity 0/700 Matter 251/300 Energy 98/100 System Corruption 5% Temperature Cool (9) Movement Core (50) Location -7/Lower Caves Parts ------- > --- POWER (1) -------- (None) > --- PROPULSION (4) --- (None) > --- UTILITY (6) ------ Seismic Detector Makeshift Hacking Suite > --- WEAPON (2) ------- (None) > --- INVENTORY (5) ---- (None) Peak State ------------ > --- POWER ------------ (None) > --- PROPULSION ------- (None) > --- UTILITY ---------- Machine Analyzer Advanced Terrain Scan Processor Seismic Detector Makeshift Hacking Suite > --- WEAPON ----------- (None) > --- INVENTORY -------- (None) [Rating: 12] Favorites ----------- Power None Propulsion Flight Unit Flight Unit Flight Unit Utility Advanced Terrain Scan Processor Device Seismic Detector Processor Advanced Terrain Scan Processor Hackware Makeshift Hacking Suite Weapon None Build | -11 -10 -9 -8 -7 -7 ------- Run | Yrd Mat Mat Mat Fac Low Slots Evolved 6 | . . 2 2 2 . Power . | . . . . . . Propulsion 2 | . . . . 2 . Utility 4 | . . 2 2 . . Weapon . | . . . . . . Parts Attached 7 | . 1 . 2 3 1 Power . | . . . . . . Engine . | . . . . . . Core . | . . . . . . Reactor . | . . . . . . Propulsion 1 | . 1 . . . . Treads . | . . . . . . Leg . | . . . . . . Wheel . | . . . . . . Hover . | . . . . . . Flight 1 | . 1 . . . . Utility 6 | . . . 2 3 1 Device 1 | . . . . 1 . Storage . | . . . . . . Processor 4 | . . . 2 2 . Hackware 1 | . . . . . 1 Protection . | . . . . . . Artifact . | . . . . . . Weapon . | . . . . . . Energy Gun . | . . . . . . Energy Cannon . | . . . . . . Ballistic Gun . | . . . . . . Ballistic Cannon . | . . . . . . Launcher . | . . . . . . Special Weapon . | . . . . . . Impact Weapon . | . . . . . . Slashing Weapon . | . . . . . . Piercing Weapon . | . . . . . . Special Melee Weapon . | . . . . . . Unidentified Prototypes . | . . . . . . Parts Lost 5 | . . . 3 . 2 Power . | . . . . . . Propulsion 1 | . . . 1 . . Utility 4 | . . . 2 . 2 Weapon . | . . . . . . Highest Loss Streak 3 | . . . 3 . 2 To Critical Strikes . | . . . . . . Average Slot Usage (%) 17 | . 7 11 16 15 28 Flight 2 | . 7 11 7 . . Device 2 | . . . . 1 7 Processor 10 | . . . 9 13 15 Hackware 1 | . . . . . 5 Peak Build Rating 12 | . 1 1 6 8 12 Average Rating 6 | . . 1 2 6 11 On Entrance 1 | . . 1 1 . 8 Naked Turns 36 | . 27 . 1 8 . Heaviest Build 1 | . . . . 1 1 Greatest Support 4 | 3 4 4 4 3 3 Greatest Overweight (x) . | . . . . . . Average Overweight (x) . | . . . . . . Largest Inventory Capacity 5 | 5 5 5 5 5 5 Average Capacity 5 | 5 5 5 5 5 5 Most Carried . | . . . . . . Average Carried . | . . . . . . Final Capacity 5 | 5 5 5 5 5 5 Final Carried . | . . . . . . Class Distribution -------------------- 100% | Mutant Dominant Class ---------------- Mutant | -10/Materials Mutant | -9/Materials Mutant | -8/Materials Mutant | -7/Factory Mutant | -7/Lower Caves Resources | -11 -10 -9 -8 -7 -7 ----------- Run | Yrd Mat Mat Mat Fac Low Matter Collected 173 | . . . 4 . 169 Remotely . | . . . . . . Salvage Created . | . . . . . . Parts . | . . . . . . Haulers Intercepted . | . . . . . . Recyclers Shooed . | . . . . . . Parts Field Recycled . | . . . . . . Retrieved Matter . | . . . . . . Parts Self-Destructed 3 | . . . . . 3 Prevented 3 | . . . . . 3 Kills | -11 -10 -9 -8 -7 -7 ------- Run | Yrd Mat Mat Mat Fac Low Combat Hostiles Destroyed . | . . . . . . Classes Destroyed . | . . . . . . Best Kill Streak . | . . . . . . Combat Bots Only . | . . . . . . Max Kills in Single Turn . | . . . . . . Gunslinging . | . . . . . . Exploded . | . . . . . . Melee . | . . . . . . Uniques/NPCs Destroyed . | . . . . . . Combat | -11 -10 -9 -8 -7 -7 -------- Run | Yrd Mat Mat Mat Fac Low Hostile Shots Fired 145 | . 33 . 14 60 38 Missed 60 | . 14 . 7 26 13 Damage Taken 1151 | . 148 . 237 379 387 Core 1050 | . 142 . 199 378 331 Absorbed by Shields . | . . . . . . Core Remaining (%) 76 | 100 43 100 63 . . Volleys Fired . | . . . . . . Largest . | . . . . . . Hottest . | . . . . . . Shots Fired . | . . . . . . Gun . | . . . . . . Cannon . | . . . . . . Launcher . | . . . . . . Special . | . . . . . . Kinetic . | . . . . . . Thermal . | . . . . . . Explosive . | . . . . . . Electromagnetic . | . . . . . . Robot Hit Streak . | . . . . . . Robot Miss Streak . | . . . . . . Penetration Max . | . . . . . . Secondary Targets . | . . . . . . Shots Hit Robots . | . . . . . . Core Hits . | . . . . . . Critical Kills . | . . . . . . Critical Parts Destroyed . | . . . . . . Critical Strikes . | . . . . . . Melee Attacks . | . . . . . . Impact . | . . . . . . Slashing . | . . . . . . Piercing . | . . . . . . Sneak Attacks . | . . . . . . Combat Hostiles . | . . . . . . Follow-up Attacks . | . . . . . . Damage Inflicted 17 | . . . 11 3 3 Guns . | . . . . . . Cannons . | . . . . . . Explosions . | . . . . . . Melee . | . . . . . . Ramming 17 | . . . 11 3 3 Kinetic . | . . . . . . Thermal . | . . . . . . Explosive . | . . . . . . Electromagnetic . | . . . . . . Impact . | . . . . . . Slashing . | . . . . . . Piercing . | . . . . . . Highest Corruption 1 | . . . . 1 1 Average Corruption 1 | . . . . 1 1 Corruption Purged . | . . . . . . Corruption Blocked . | . . . . . . Effects 1 | . . . . . 1 Message Errors 1 | . . . . . 1 Overload Shots . | . . . . . . Overflow Damage . | . . . . . . Projectiles . | . . . . . . Explosions . | . . . . . . Melee . | . . . . . . Knockbacks . | . . . . . . Impact . | . . . . . . Kinetic . | . . . . . . Secondary . | . . . . . . Self-Inflicted Damage 7 | . . . 5 1 1 Shots . | . . . . . . Rammed 6 | . . . 3 2 1 Targets Rammed 6 | . . . 3 2 1 Kicked . | . . . . . . Crushed . | . . . . . . Highest Temperature . | . . . . . . Average Temperature . | . . . . . . Received Heat Transfer 150 | . . . 36 105 9 Siege Activations . | . . . . . . Robots Corrupted . | . . . . . . Combat Hostiles . | . . . . . . Parts Fried . | . . . . . . Impact Corruptions . | . . . . . . Robots Melted . | . . . . . . Combat Hostiles . | . . . . . . Parts Melted . | . . . . . . Heat Transferred . | . . . . . . Parts Sabotaged . | . . . . . . Parts Stolen . | . . . . . . Parts Stripped . | . . . . . . Power Chain Reactions . | . . . . . . Alert | -11 -10 -9 -8 -7 -7 ------- Run | Yrd Mat Mat Mat Fac Low Peak Influence 123 | . 15 20 38 123 . Initial 8 | . . 5 8 3 . Average 35 | . 12 12 13 56 . Maximum Alert Level . | . . . . . . Low Security (%) 100 | 100 100 100 100 100 . Level 1 . | . . . . . . Level 2 . | . . . . . . Level 3 . | . . . . . . Level 4 . | . . . . . . Level 5 . | . . . . . . High Security . | . . . . . . Max Security . | . . . . . . Squads Dispatched 3 | . . . 1 2 . Investigation . | . . . . . . Extermination . | . . . . . . Reinforcement 3 | . . . 1 2 . Assault . | . . . . . . Garrison . | . . . . . . Intercept . | . . . . . . Searches Triggered . | . . . . . . Construction Impeded . | . . . . . . Haulers Reinforced 1 | . . . . 1 . Active Scanning Responses . | . . . . . . Cargo Convoy Interrupts . | . . . . . . Stealth | -11 -10 -9 -8 -7 -7 --------- Run | Yrd Mat Mat Mat Fac Low Distress Signals 1 | . . . . 1 . Communications Jammed . | . . . . . . Distress Signals . | . . . . . . Times Spotted 27 | . 4 . 3 11 9 Peak Tracking Total 7 | . 4 . 4 7 6 Tactical Retreats 2 | . . . . 1 1 Traps | -11 -10 -9 -8 -7 -7 ------- Run | Yrd Mat Mat Mat Fac Low Traps Triggered . | . . . . . . Indirectly . | . . . . . . Trap Hack Attempts . | . . . . . . Triggered . | . . . . . . Disarmed . | . . . . . . Reprogrammed . | . . . . . . Reused . | . . . . . . Traps Extracted . | . . . . . . Installed . | . . . . . . Triggered 1 | . . . . . 1 Machines | -11 -10 -9 -8 -7 -7 ---------- Run | Yrd Mat Mat Mat Fac Low Machines Disabled . | . . . . . . Max in Single Turn . | . . . . . . Machines Repaired . | . . . . . . Machines Dismantled . | . . . . . . Machines Sabotaged . | . . . . . . Overloaded Fab Kills . | . . . . . . Hacking | -11 -10 -9 -8 -7 -7 --------- Run | Yrd Mat Mat Mat Fac Low Machines Accessed . | . . . . . . Terminals . | . . . . . . Fabricators . | . . . . . . Repair Stations . | . . . . . . Recycling Units . | . . . . . . Scanalyzers . | . . . . . . Garrison Access . | . . . . . . Total Hacks . | . . . . . . Successful . | . . . . . . Failed . | . . . . . . Catastrophic . | . . . . . . Database Lockouts . | . . . . . . Manual . | . . . . . . Terminals . | . . . . . . Fabricators . | . . . . . . Repair Stations . | . . . . . . Recycling Units . | . . . . . . Scanalyzers . | . . . . . . Garrison Access . | . . . . . . Terminal Hacks . | . . . . . . Fabricator Hacks . | . . . . . . Repair Station Hacks . | . . . . . . Recycling Unit Hacks . | . . . . . . Scanalyzer . | . . . . . . Garrison Access Hacks . | . . . . . . Unauthorized Hacks . | . . . . . . Terminals . | . . . . . . Fabricators . | . . . . . . Repair Stations . | . . . . . . Recycling Units . | . . . . . . Scanalyzers . | . . . . . . Garrison Access . | . . . . . . Data Cores Recovered . | . . . . . . Used . | . . . . . . Hacking Detections . | . . . . . . Full Trace Events . | . . . . . . Feedback Events . | . . . . . . Feedback Blocked . | . . . . . . Robot Schematics Acquired . | . . . . . . Robots Built . | . . . . . . Authchips . | . . . . . . Time . | . . . . . . Total Robot Build Rating . | . . . . . . Part Schematics Acquired . | . . . . . . Parts Built . | . . . . . . Authchips . | . . . . . . Time . | . . . . . . Total Part Build Rating . | . . . . . . Parts Repaired . | . . . . . . Time . | . . . . . . Parts Recycled . | . . . . . . Recycled Matter . | . . . . . . Retrieved Matter . | . . . . . . Retrieved Components . | . . . . . . Parts Scanalyzed . | . . . . . . Part Schematics Acquired . | . . . . . . Parts Damaged . | . . . . . . Bothacking | -11 -10 -9 -8 -7 -7 ------------ Run | Yrd Mat Mat Mat Fac Low Used RIF Installer . | . . . . . . Robots Hacked . | . . . . . . Non-combat . | . . . . . . Combat . | . . . . . . Robot Hacks Applied . | . . . . . . Relay Couplers Released . | . . . . . . Fabnet Peak Effective % . | . . . . . . Robots Rewired . | . . . . . . Allies Hacked . | . . . . . . Hacks Repelled . | . . . . . . Allies | -11 -10 -9 -8 -7 -7 -------- Run | Yrd Mat Mat Mat Fac Low Total Allies 1 | . . . . . 1 Largest Group 1 | . . . . . 1 Highest-Rated Group 180 | . . . . . 180 Highest-Rated Ally 180 | . . . . . 180 Total Orders . | . . . . . . Ally Attacks . | . . . . . . Total Damage . | . . . . . . Kills . | . . . . . . Allies Corrupted . | . . . . . . Allies Melted . | . . . . . . Intel | -11 -10 -9 -8 -7 -7 ------- Run | Yrd Mat Mat Mat Fac Low Robot Analysis Total . | . . . . . . Derelict Logs Recovered . | . . . . . . Drone Launches . | . . . . . . Drone Recoveries . | . . . . . . Exploration | -11 -10 -9 -8 -7 -7 ------------- Run | Yrd Mat Mat Mat Fac Low Turns Passed 388 | 9 42 30 55 149 103 Spaces Moved 782 | 18 88 74 117 284 201 Core 580 | 18 52 . 25 284 201 Treads . | . . . . . . Legs . | . . . . . . Wheels . | . . . . . . Hover . | . . . . . . Flight 202 | . 36 74 92 . . Fastest Speed 40 | 50 40 40 40 50 50 Average Speed 47 | 50 45 40 42 50 50 Slowest Speed 50 | 50 50 40 50 50 50 Overloaded Moves . | . . . . . . Propulsion Burnouts . | . . . . . . Robots Hopped . | . . . . . . Cave-ins Triggered . | . . . . . . Exploration Rate (%) 18 | 3 28 12 15 17 38 Regions Visited 5 Branch Regions 1 Pre-discovered Areas . | . . . . . . Known Exits Taken . | . . . . . . Unknown Exits Taken 5 | 1 1 1 1 1 . Scrap Searched 8 | . . . . . 8 Spaces Dug . | . . . . . . Terrain Destroyed . | . . . . . . Melee . | . . . . . . Projectile . | . . . . . . AOE . | . . . . . . Terrain Rammed . | . . . . . . Walls Destroyed . | . . . . . . Machines Disabled . | . . . . . . Actions | -11 -10 -9 -8 -7 -7 --------- Run | Yrd Mat Mat Mat Fac Low Total 790 | 17 88 73 121 288 203 Wait . | . . . . . . Move 778 | 17 87 73 117 283 201 Hop . | . . . . . . Pick Up . | . . . . . . Fast Attach 7 | . 1 . 2 3 1 Attach . | . . . . . . Detach . | . . . . . . Swap . | . . . . . . Drop . | . . . . . . Fire . | . . . . . . Melee . | . . . . . . Ram 5 | . . . 2 2 1 Kick . | . . . . . . Crush . | . . . . . . Escape Stasis . | . . . . . . Rewire . | . . . . . . Trap . | . . . . . . Miscellaneous . | . . . . . . Route ------- -11/Scrapyard -10/Materials -9/Materials -8/Materials -7/Factory -7/Lower Caves History --------- Turn | Location | Event 3 | -11/Scrapyard | Discovered new exit (range 15) 10 | -11/Scrapyard | Entered Materials 41 | -10/Materials | Core integrity fell below 50% 49 | -10/Materials | Discovered new exit (range 7) 52 | -10/Materials | Entered another Materials area 52 | -9/Materials | Evolved 2 slots: Utility x2 79 | -9/Materials | Discovered new exit (range 4) 82 | -9/Materials | Entered another Materials area 82 | -8/Materials | Evolved 2 slots: Utility x2 126 | -8/Materials | Discovered new exit (range 16) 137 | -8/Materials | Entered Factory 137 | -7/Factory | Evolved 2 slots: Propulsion x2 167 | -7/Factory | Lost 3 parts (1n2u) 263 | -7/Factory | Core integrity fell below 50% 278 | -7/Factory | Discovered new exit (range 13) 286 | -7/Factory | Entered Lower Caves 309 | -7/Lower Caves | Core integrity fell below 20% 321 | -7/Lower Caves | Build established: Mutant 389 | -7/Lower Caves | Destroyed by G-47 Trooper with Particle Gun Last Messages --------------- Found 67 Matter. Searching scrap... Found Pulse Rifle. Found Hvy. Battle Rifle. Found 38 Matter. Searching scrap... Found Lightning Gun. Found Airjet. Found Target Analyzer. Searching scrap... Found Component Analysis Suite. A strange signal echoes through the caves. Searching scrap... Found Hvy. Ion Cannon. Slammed into S-27 Virus. S-27 Virus destroyed. VNWW US61KQN:XCK RYINJ 2U4 Machine Analyzer destroyed. Adv. Terrain Scan Processor destroyed. System corrupted by crushing effect (+4). Map ----- +----------------------------------------------------+ | ?????????????????????????????????????????????????? | | ?????????????????????????????????????????????????? | | ?????????????????????????????????????????????????? | | ?????????????????????????????????????????????????? | | ?????????????????????????????????????????????????? | | ?????????????????????????????????????????????????? | | ?????????????????????????????????????????????????? | | ?????????????????????????????????????????????????? | | ?????????????????????????????????????????????????? | | ?????????????????????????????????????????????????? | | ?????????????????????????????????????????????????? | | ?????????????????????????????????????????????????? | | ?????????????????????????????????????????????????? | | ??????????????????????????##?????????????????????? | | ?????????????????????????? ?????????????????????? | | ?????????????????????????? ?????????????????????? | | ?????????????????????????? #?????????????????????? | | ????????????????????????## #?????????????????????? | | ???????????????????????## ##????????????????????? | | ???????????????????????# #????????????????????? | | ??????????????????????## #????????????????????? | | ??????????????????????# ##???????????????????? | | ????????????????????### ###?????????????????? | | ?????????????????????%g #???? ????????????? | | ??????????????????????# #??? ????????????? | | ??????????????????????# b@ #??? ?????????????? | | ??????????????????????## ###?? ??????????? | | ???????????????######?##gs #### #???????????? | | ???????????????# ### #???????????? | | ???????????????# s ????????? | | ???????????????## s ## ????????? | | ????????????????## #?? ????????? | | ?????????????????#### ##??? ?????????? | | ????????????????????## #????? ## ?????????? | | ?????????????????????##### ####### #????????????? | | ?????????????????????????## #????????????? | | ??????????????????????????# "" #????????????? | | ??????????????????????????# """"" #????????????? | | ??????????????????????????# """" #??? #???????? | | ?????????????????????????## " #??? ???????? | | ???????????????????????### "" "" ##??? ???????? | | ???????????????????????# """ "#???# ???????? | | ??????????????????????## "" " "#???# ???????? | | ??????????????????????# #??? ???????? | | ??????????????????????# #??? ???????? | | ??????????????????????# ##??? #??????? | | ??????????????????????# ##????# ##?????? | | ??????????????????????## ####????## ##????? | | ???????????????????????## #???####? #????? | | ????????????????????????# #??## ### #????? | +----------------------------------------------------+ Best States ------------- Heat Dissipation 34 Energy Generation 5 Energy Capacity 100 Matter Stores 241 Matter Capacity 300 Sight Range 16 Terrain Scan Density 210 Evasion (%) 62 Offensive Hacking 11 Item Schematics ----------------- None Robot Schematics ------------------ None Fabricated ------------ Nothing Alien Tech Used ----------------- None Achievements -------------- None Challenges ------------ None Game ------ Seed ReactionFrostSword Manual? 0 Play Time 00:06:44 Cumulative 183.0 hours Start 2024.08.09 @ 10:45:35 End 2024.08.09 @ 10:51:17 Sessions 1 Manual Loads 0 Difficulty Rogue Special Mode None Game No. 304 Rogue 302 Adventurer 2 Explorer 0 Win Type - Total 6 Types 5/0/0/1/0/0/0/0/0 Lore% 69 Gallery% 62 Achievement% 53 Wizard Run 0 Options --------- Layout 0 ASCII 0 Keyboard 1 Movement Numpad Keybinds 1 Fullscreen 2 Font 18/SmallcapsGlow Map View 76x50 Zoom Use 0% Tactical HUD 1 Map Filters NONE Filters NONE Steam 1 RUN: 7b5c2a0f-1e70-4d6d-b84f-04700460f1bb